[Event "27th 4NCL Congress Open 2022"]
[Site "Harrogate"]
[Date "2022.01.22"]
[Round "3.7"]
[White "Makkar, Rajat"]
[Black "McKay, Jonathan"]
[Result "1-0"]
[ECO "D00"]
[WhiteElo "2260"]
[BlackElo "1832"]
[Annotator "ChessBase"]
[PlyCount "71"]
[EventDate "2022.01.21"]
[EventType "swiss"]
[EventCountry "ENG"]
[SourceTitle "playchess.com"]
[Source "ChessBase"]
[SourceQuality "1"]
[TimeControl "5400+30"]

1. d4 {[%emt 0:00:02]} Nf6 {[%emt 0:01:40]} 2. Nc3 {[%emt 0:00:09]} d5 {[%emt 0:00:30]} 3. Bf4 {[%emt 0:00:31]} c6 {[%emt 0:00:14]} 4. e3 {[%emt 0:00:30]} Qb6 {[%emt 0:01:14]} 5. Rb1 {[%emt 0:00:52]} Bf5 {[%emt 0:00:52]} 6. f3 {[%emt 0:01:00]} e6 {[%emt 0:01:18]} 7. g4 {[%emt 0:00:51]} Bg6 {[%emt 0:00:15]} 8. h4 {[%emt 0:00:24]} h6 {[%emt 0:08:44]} 9. h5 {[%emt 0:01:30]} Bh7 {[%emt 0:00:07]} 10. Bd3 {[%emt 0:00:13]} Bxd3 {[%emt 0:04:28]} 11. Qxd3 {[%emt 0:00:41]} c5 {[%emt 0:05:36]} 12. Nge2 {[%emt 0:07:33]} Nc6 {[%emt 0:03:23]} 13. Kf1 {[%emt 0:02:16]} Nb4 {[%emt 0:05:47]} 14. Qd2 {[%emt 0:01:36]} cxd4 {[%emt 0:07:30]} 15. exd4 {[%emt 0:03:55]} a6 {[%emt 0:06:03]} 16. a3 {[%emt 0:02:12]} Nc6 {[%emt 0:00:18]} 17. Kg2 {[%emt 0:00:34]} Na5 {[%emt 0:03:01]} 18. Na4 {[%emt 0:03:31]} Qd8 {[%emt 0:00:23]} 19. b3 {[%emt 0:04:33]} b5 {[%emt 0:11:02]} 20. Nb2 {[%emt 0:03:01]} Nc6 {[%emt 0:03:26]} 21. Nd3 {[%emt 0:04:04]} Bd6 {[%emt 0:01:51]} 22. Rbe1 {[%emt 0:05:24]} a5 {[%emt 0:04:31]} 23. Nc5 {[%emt 0:01:49]} Qe7 {[%emt 0:04:44]} 24. Bxd6 {[%emt 0:03:59]} Qxd6 {[%emt 0:00:07]} 25. Ng3 {[%emt 0:00:11]} Kf8 {[%emt 0:01:18]} 26. Re2 {[%emt 0:02:01]} Nd7 {[%emt 0:02:19]} 27. b4 {[%emt 0:01:49]} axb4 {[%emt 0:01:29]} 28. axb4 {[%emt 0:00:14]} Nb6 {[%emt 0:00:45]} 29. c3 {[%emt 0:01:06]} Nc4 {[%emt 0:04:57]} 30. Qd3 {[%emt 0:01:36]} Ra3 {[%emt 0:01:55]} 31. Rhe1 {[%emt 0:00:57]} Ra8 {[%emt 0:05:26]} 32. Nxe6+ {[%emt 0:01:38]} fxe6 {[%emt 0:00:56]} 33. Rxe6 {[%emt 0:00:20]} Qd7 {[%emt 0:03:02]} 34. Qf5+ {[%emt 0:00:07]} Kg8 {[%emt 0:00:14]} 35. Qg6 {[%emt 0:00:11]} N6e5 {[%emt 0:01:52]} 36. dxe5 {[%emt 0:00:41]} 1-0

[Event "27th 4NCL Congress Open 2022"]
[Site "Harrogate"]
[Date "2022.01.22"]
[Round "3.8"]
[White "Jarmany, John"]
[Black "Smith, Andrew Philip"]
[Result "0-1"]
[ECO "A67"]
[WhiteElo "2126"]
[BlackElo "2112"]
[Annotator "ChessBase"]
[PlyCount "98"]
[EventDate "2022.01.21"]
[EventType "swiss"]
[EventCountry "ENG"]
[SourceTitle "playchess.com"]
[Source "ChessBase"]
[SourceQuality "1"]
[TimeControl "5400+30"]

1. d4 {[%emt 0:03:04]} Nf6 {[%emt 0:05:00]} 2. c4 {[%emt 0:00:08]} c5 {[%emt 0:00:07]} 3. d5 {[%emt 0:00:12]} e6 {[%emt 0:00:07]} 4. Nc3 {[%emt 0:00:04]} exd5 {[%emt 0:00:06]} 5. cxd5 {[%emt 0:00:04]} d6 {[%emt 0:00:05]} 6. e4 {[%emt 0:00:06]} g6 {[%emt 0:00:08]} 7. f4 {[%emt 0:00:33]} Bg7 {[%emt 0:00:26]} 8. Bb5+ {[%emt 0:00:12]} Nfd7 {[%emt 0:00:50]} 9. Nf3 {[%emt 0:00:11]} a6 {[%emt 0:02:40]} 10. Bd3 {[%emt 0:00:06]} b5 {[%emt 0:00:21]} 11. O-O {[%emt 0:00:15]} b4 {[%emt 0:02:18]} 12. Ne2 {[%emt 0:04:16]} O-O {[%emt 0:00:38]} 13. f5 {[%emt 0:08:00]} Nf6 {[%emt 0:05:49]} 14. fxg6 {[%emt 0:04:53]} hxg6 {[%emt 0:01:17]} 15. Qe1 {[%emt 0:13:16]} c4 {[%emt 0:07:22]} 16. Bc2 {[%emt 0:02:14]} Qb6+ {[%emt 0:00:20]} 17. Kh1 {[%emt 0:01:04]} Bg4 {[%emt 0:00:41]} 18. Qh4 {[%emt 0:02:50]} Nbd7 {[%emt 0:01:58]} 19. Bg5 {[%emt 0:02:32]} Rae8 {[%emt 0:22:41]} 20. Bxf6 {[%emt 0:17:44]} Nxf6 {[%emt 0:01:55]} 21. Ng5 {[%emt 0:01:31]} Bxe2 {[%emt 0:08:28]} 22. Rxf6 {[%emt 0:00:06]} Bh5 {[%emt 0:00:19]} 23. Rf4 {[%emt 0:06:42]} Qd8 {[%emt 0:14:59]} 24. Raf1 {[%emt 0:09:34]} Re5 {[%emt 0:04:37]} 25. Nf3 {[%emt 0:05:09]} Bxf3 {[%emt 0:07:37]} 26. Qxd8 {[%emt 0:00:39]} Bxg2+ {[%emt 0:00:45]} 27. Kxg2 {[%emt 0:00:06]} Rxd8 {[%emt 0:00:07]} 28. Rxf7 {[%emt 0:01:25]} Rg5+ {[%emt 0:00:27]} 29. Kh1 {[%emt 0:00:07]} Bxb2 {[%emt 0:00:45]} 30. Rc7 {[%emt 0:00:03]} Bd4 {[%emt 0:01:47]} 31. Rxc4 {[%emt 0:01:14]} Bc5 {[%emt 0:00:22]} 32. Bd3 {[%emt 0:07:43]} Kg7 {[%emt 0:01:24]} 33. Rcc1 {[%emt 0:01:13]} a5 {[%emt 0:00:26]} 34. Rc2 {[%emt 0:02:16]} Rf8 {[%emt 0:02:23]} 35. Rg2 {[%emt 0:00:54]} Rxf1+ {[%emt 0:00:25]} 36. Bxf1 {[%emt 0:00:04]} Kf6 {[%emt 0:00:13]} 37. Rxg5 {[%emt 0:01:19]} Kxg5 {[%emt 0:00:07]} 38. Kg2 {[%emt 0:00:01]} Kf4 {[%emt 0:00:13]} 39. Bd3 {[%emt 0:00:03]} a4 {[%emt 0:00:12]} 40. Bc2 {[%emt 0:00:14]} b3 {[%emt 0:01:00]} 41. axb3 {[%emt 0:01:41]} a3 {[%emt 0:00:06]} 42. Bb1 {[%emt 0:00:05]} Ke3 {[%emt 0:00:13]} 43. b4 {[%emt 0:01:08]} Bxb4 {[%emt 0:00:11]} 44. Kg3 {[%emt 0:00:06]} Bc3 {[%emt 0:02:14]} 45. Kg4 {[%emt 0:02:22]} Bf6 {[%emt 0:00:13]} 46. h3 {[%emt 0:01:17]} Kd2 {[%emt 0:00:10]} 47. e5 {[%emt 0:00:03]} dxe5 {[%emt 0:00:17]} 48. Kf3 {[%emt 0:01:45]} Kc1 {[%emt 0:00:23]} 49. Ba2 {[%emt 0:00:02]} Kb2 {[%emt 0:00:32]} 0-1

[Event "27th 4NCL Congress Open 2022"]
[Site "Harrogate"]
[Date "2022.01.22"]
[Round "3.9"]
[White "Onslow, Alfie"]
[Black "Pink, Joshua"]
[Result "1-0"]
[ECO "B12"]
[WhiteElo "2038"]
[BlackElo "1939"]
[Annotator "ChessBase"]
[PlyCount "93"]
[EventDate "2022.01.21"]
[EventType "swiss"]
[EventCountry "ENG"]
[SourceTitle "playchess.com"]
[Source "ChessBase"]
[SourceQuality "1"]
[TimeControl "5400+30"]

1. e4 {[%emt 0:00:03]} c6 {[%emt 0:00:53]} 2. d4 {[%emt 0:00:10]} d5 {[%emt 0:00:07]} 3. e5 {[%emt 0:00:03]} Bf5 {[%emt 0:00:44]} 4. Nf3 {[%emt 0:00:05]} e6 {[%emt 0:00:08]} 5. Be2 {[%emt 0:00:03]} Nd7 {[%emt 0:01:11]} 6. O-O {[%emt 0:00:05]} Ne7 {[%emt 0:01:13]} 7. Nh4 {[%emt 0:00:04]} Bg6 {[%emt 0:02:35]} 8. Nd2 {[%emt 0:00:21]} Nf5 {[%emt 0:02:07]} 9. Nxg6 {[%emt 0:00:06]} hxg6 {[%emt 0:00:08]} 10. Nf3 {[%emt 0:00:02]} Qb6 {[%emt 0:04:45]} 11. a4 {[%emt 0:02:57]} Be7 {[%emt 0:03:39]} 12. a5 {[%emt 0:02:28]} Qc7 {[%emt 0:00:19]} 13. a6 {[%emt 0:03:30]} b5 {[%emt 0:01:39]} 14. c3 {[%emt 0:01:20]} f6 {[%emt 0:01:36]} 15. Bf4 {[%emt 0:22:00]} g5 {[%emt 0:07:34]} 16. exf6 {[%emt 0:00:12]} Qxf4 {[%emt 0:00:13]} 17. g3 {[%emt 0:00:09]} Nxg3 {[%emt 0:05:49]} 18. fxg3 {[%emt 0:15:12]} Qxf6 {[%emt 0:02:59]} 19. Ne5 {[%emt 0:02:45]} Qh6 {[%emt 0:03:38]} 20. Ng4 {[%emt 0:00:14]} Qh3 {[%emt 0:02:07]} 21. Rf2 {[%emt 0:04:50]} Bd6 {[%emt 0:03:53]} 22. Qf1 {[%emt 0:03:23]} Qxf1+ {[%emt 0:03:48]} 23. Bxf1 {[%emt 0:04:48]} e5 {[%emt 0:03:31]} 24. Rf5 {[%emt 0:06:35]} e4 {[%emt 0:06:11]} 25. Rxg5 {[%emt 0:00:34]} O-O {[%emt 0:01:26]} 26. Nh6+ {[%emt 0:02:35]} Kh8 {[%emt 0:07:21]} 27. Nf5 {[%emt 0:00:21]} Bc7 {[%emt 0:00:14]} 28. Rh5+ {[%emt 0:08:06]} Kg8 {[%emt 0:00:13]} 29. Ne7+ {[%emt 0:00:11]} Kf7 {[%emt 0:00:09]} 30. Nxc6 {[%emt 0:00:34]} Kg6 {[%emt 0:03:29]} 31. Rxd5 {[%emt 0:01:03]} Nf6 {[%emt 0:01:04]} 32. Rxb5 {[%emt 0:00:38]} Ng4 {[%emt 0:01:49]} 33. Re1 {[%emt 0:04:29]} Rf6 {[%emt 0:06:44]} 34. Ne7+ {[%emt 0:04:38]} Kf7 {[%emt 0:02:33]} 35. Nd5 {[%emt 0:00:08]} Nxh2 {[%emt 0:00:44]} 36. Kxh2 {[%emt 0:01:53]} Rf2+ {[%emt 0:00:41]} 37. Bg2 {[%emt 0:03:08]} Rh8+ {[%emt 0:00:07]} 38. Kg1 {[%emt 0:00:05]} Bxg3 {[%emt 0:00:04]} 39. Re3 {[%emt 0:03:01]} Bh4 {[%emt 0:00:34]} 40. Rxe4 {[%emt 0:01:22]} Rd2 {[%emt 0:00:51]} 41. Rb7+ {[%emt 0:01:15]} Kg6 {[%emt 0:00:08]} 42. Rg4+ {[%emt 0:00:28]} Kf5 {[%emt 0:00:20]} 43. Ne3+ {[%emt 0:00:38]} Kf6 {[%emt 0:00:26]} 44. Rf4+ {[%emt 0:01:54]} Kg5 {[%emt 0:01:15]} 45. Rf5+ {[%emt 0:02:15]} Kg6 {[%emt 0:00:22]} 46. Be4 {[%emt 0:00:19]} Re8 {[%emt 0:01:37]} 47. Re5+ {[%emt 0:00:22]} 1-0

[Event "27th 4NCL Congress Open 2022"]
[Site "Harrogate"]
[Date "2022.01.22"]
[Round "3.10"]
[White "Faulkner, Martin J"]
[Black "Burnett, Andrew"]
[Result "0-1"]
[ECO "E63"]
[WhiteElo "1833"]
[BlackElo "2183"]
[Annotator "ChessBase"]
[PlyCount "92"]
[EventDate "2022.01.21"]
[EventType "swiss"]
[EventCountry "ENG"]
[SourceTitle "playchess.com"]
[Source "ChessBase"]
[SourceQuality "1"]
[TimeControl "5400+30"]

1. c4 {[%emt 0:00:18]} g6 {[%emt 0:00:46]} 2. Nf3 {[%emt 0:00:11]} Bg7 {[%emt 0:00:11]} 3. d4 {[%emt 0:00:05]} d6 {[%emt 0:00:11]} 4. g3 {[%emt 0:00:30]} Nf6 {[%emt 0:00:16]} 5. Bg2 {[%emt 0:00:11]} O-O {[%emt 0:00:09]} 6. Nc3 {[%emt 0:00:07]} Nc6 {[%emt 0:00:20]} 7. O-O {[%emt 0:00:15]} a6 {[%emt 0:00:06]} 8. b3 {[%emt 0:02:52]} Bf5 {[%emt 0:04:10]} 9. Nh4 {[%emt 0:03:51]} Bd7 {[%emt 0:01:19]} 10. Bb2 {[%emt 0:09:13]} e5 {[%emt 0:00:53]} 11. dxe5 {[%emt 0:06:10]} dxe5 {[%emt 0:00:10]} 12. h3 {[%emt 0:03:11]} Re8 {[%emt 0:02:01]} 13. e3 {[%emt 0:04:27]} e4 {[%emt 0:03:16]} 14. g4 {[%emt 0:10:53]} h6 {[%emt 0:02:39]} 15. Qe2 {[%emt 0:07:34]} Qe7 {[%emt 0:05:31]} 16. Rad1 {[%emt 0:09:52]} Rad8 {[%emt 0:00:23]} 17. Bh1 {[%emt 0:04:32]} Ne5 {[%emt 0:04:36]} 18. f4 {[%emt 0:05:40]} exf3 {[%emt 0:00:25]} 19. Nxf3 {[%emt 0:03:04]} Nxf3+ {[%emt 0:02:11]} 20. Rxf3 {[%emt 0:00:34]} Bc6 {[%emt 0:01:51]} 21. Rxd8 {[%emt 0:06:19]} Rxd8 {[%emt 0:01:35]} 22. e4 {[%emt 0:00:37]} Qc5+ {[%emt 0:05:00]} 23. Qf2 {[%emt 0:05:15]} Qxf2+ {[%emt 0:14:07]} 24. Rxf2 {[%emt 0:09:21]} Rd3 {[%emt 0:09:12]} 25. Nd5 {[%emt 0:00:00]} Bxd5 {[%emt 0:00:40]} 26. cxd5 {[%emt 0:00:00]} Ne8 {[%emt 0:03:20]} 27. Bxg7 {[%emt 0:00:07]} Kxg7 {[%emt 0:00:08]} 28. Kh2 {[%emt 0:00:14]} Re3 {[%emt 0:01:21]} 29. Rc2 {[%emt 0:00:50]} Kf6 {[%emt 0:01:01]} 30. Rf2+ {[%emt 0:00:51]} Ke7 {[%emt 0:00:35]} 31. Rc2 {[%emt 0:03:37]} g5 {[%emt 0:01:14]} 32. Bg2 {[%emt 0:00:44]} Kd6 {[%emt 0:02:07]} 33. Kg1 {[%emt 0:00:19]} Re1+ {[%emt 0:00:33]} 34. Kf2 {[%emt 0:00:04]} Ra1 {[%emt 0:00:09]} 35. Ke3 {[%emt 0:00:27]} Ke5 {[%emt 0:02:28]} 36. Rf2 {[%emt 0:00:37]} f6 {[%emt 0:02:12]} 37. Rf5+ {[%emt 0:00:23]} Kd6 {[%emt 0:00:07]} 38. Rf2 {[%emt 0:00:15]} Rc1 {[%emt 0:00:39]} 39. Kd2 {[%emt 0:00:36]} Rg1 {[%emt 0:01:07]} 40. Kd3 {[%emt 0:01:52]} a5 {[%emt 0:02:02]} 41. Kc4 {[%emt 0:01:33]} Rc1+ {[%emt 0:01:33]} 42. Kd4 {[%emt 0:00:19]} b5 {[%emt 0:00:56]} 43. Bf1 {[%emt 0:00:22]} Rd1+ {[%emt 0:01:32]} 44. Ke3 {[%emt 0:00:26]} Kc5 {[%emt 0:00:50]} 45. a3 {[%emt 0:01:30]} Rc1 {[%emt 0:01:33]} 46. Kd3 {[%emt 0:01:47]} b4 {[%emt 0:03:30]} 0-1

[Event "27th 4NCL Congress Open 2022"]
[Site "Harrogate"]
[Date "2022.01.22"]
[Round "3.11"]
[White "Brencher, Paul"]
[Black "Ther, Mate"]
[Result "0-1"]
[ECO "A45"]
[WhiteElo "1875"]
[BlackElo "2031"]
[Annotator "ChessBase"]
[PlyCount "182"]
[EventDate "2022.01.21"]
[EventType "swiss"]
[EventCountry "ENG"]
[SourceTitle "playchess.com"]
[Source "ChessBase"]
[SourceQuality "1"]
[TimeControl "5400+30"]

1. d4 {[%emt 0:01:53]} Nf6 {[%emt 0:00:13]} 2. Bg5 {[%emt 0:00:23]} Ne4 {[%emt 0:01:01]} 3. Bf4 {[%emt 0:00:14]} e6 {[%emt 0:01:09]} 4. e3 {[%emt 0:00:42]} b6 {[%emt 0:00:13]} 5. Bd3 {[%emt 0:01:02]} Bb7 {[%emt 0:00:37]} 6. Nf3 {[%emt 0:02:23]} Be7 {[%emt 0:00:30]} 7. O-O {[%emt 0:03:35]} O-O {[%emt 0:00:27]} 8. c4 {[%emt 0:03:09]} d6 {[%emt 0:01:28]} 9. Nfd2 {[%emt 0:10:08]} f5 {[%emt 0:00:53]} 10. f3 {[%emt 0:00:49]} Nxd2 {[%emt 0:00:30]} 11. Nxd2 {[%emt 0:00:18]} e5 {[%emt 0:00:34]} 12. Bg3 {[%emt 0:01:39]} exd4 {[%emt 0:00:33]} 13. exd4 {[%emt 0:00:14]} Bf6 {[%emt 0:00:22]} 14. Bf2 {[%emt 0:01:05]} g6 {[%emt 0:00:27]} 15. Re1 {[%emt 0:08:48]} a5 {[%emt 0:00:28]} 16. a4 {[%emt 0:10:35]} Nc6 {[%emt 0:00:59]} 17. Nb3 {[%emt 0:00:16]} Nb4 {[%emt 0:02:20]} 18. Nc1 {[%emt 0:06:54]} Qd7 {[%emt 0:01:04]} 19. Ne2 {[%emt 0:02:12]} Rae8 {[%emt 0:00:54]} 20. Qd2 {[%emt 0:01:37]} Re7 {[%emt 0:08:53]} 21. Nc3 {[%emt 0:08:47]} Rxe1+ {[%emt 0:00:15]} 22. Rxe1 {[%emt 0:00:15]} Qg7 {[%emt 0:03:45]} 23. Bb1 {[%emt 0:06:52]} h6 {[%emt 0:21:00]} 24. Be3 {[%emt 0:06:52]} Re8 {[%emt 0:01:46]} 25. Rd1 {[%emt 0:02:37]} Kh7 {[%emt 0:02:27]} 26. Bf2 {[%emt 0:00:39]} Bg5 {[%emt 0:00:56]} 27. f4 {[%emt 0:00:39]} Bf6 {[%emt 0:00:10]} 28. d5 {[%emt 0:06:05]} Na6 {[%emt 0:01:24]} 29. Bd4 {[%emt 0:04:18]} Nc5 {[%emt 0:04:12]} 30. Bxf6 {[%emt 0:01:42]} Qxf6 {[%emt 0:00:08]} 31. Bc2 {[%emt 0:01:06]} Bc8 {[%emt 0:02:35]} 32. Kf2 {[%emt 0:03:21]} Bd7 {[%emt 0:05:01]} 33. g3 {[%emt 0:00:58]} Kg7 {[%emt 0:02:49]} 34. Qd4 {[%emt 0:00:59]} g5 {[%emt 0:00:53]} 35. Qxf6+ {[%emt 0:00:30]} Kxf6 {[%emt 0:00:06]} 36. Re1 {[%emt 0:02:59]} Rg8 {[%emt 0:04:15]} 37. b3 {[%emt 0:00:45]} Na6 {[%emt 0:01:27]} 38. Ne2 {[%emt 0:00:35]} Nb4 {[%emt 0:01:04]} 39. Nd4 {[%emt 0:01:06]} gxf4 {[%emt 0:02:02]} 40. gxf4 {[%emt 0:00:02]} Rg4 {[%emt 0:00:44]} 41. Kf3 {[%emt 0:00:14]} h5 {[%emt 0:00:47]} 42. Bb1 {[%emt 0:00:22]} Rg7 {[%emt 0:05:05]} 43. h3 {[%emt 0:00:39]} h4 {[%emt 0:00:23]} 44. Ne6 {[%emt 0:01:28]} Rg3+ {[%emt 0:07:45]} 45. Kf2 {[%emt 0:00:00]} Rxh3 {[%emt 0:00:47]} 46. Nf8 {[%emt 0:00:11]} Bc8 {[%emt 0:02:48]} 47. Re8 {[%emt 0:00:10]} Rxb3 {[%emt 0:00:35]} 48. Rxc8 {[%emt 0:00:53]} Rxb1 {[%emt 0:00:05]} 49. Nh7+ {[%emt 0:00:43]} Kg6 {[%emt 0:00:38]} 50. Ng5 {[%emt 0:00:07]} Kh5 {[%emt 0:00:48]} 51. Ne6 {[%emt 0:01:04]} Rb2+ {[%emt 0:00:46]} 52. Kf3 {[%emt 0:00:36]} Nd3 {[%emt 0:05:11]} 53. Rh8+ {[%emt 0:00:31]} Kg6 {[%emt 0:00:05]} 54. Rxh4 {[%emt 0:00:14]} Ne1+ {[%emt 0:00:05]} 55. Kg3 {[%emt 0:00:17]} Rg2+ {[%emt 0:00:10]} 56. Kh3 {[%emt 0:00:08]} Rg1 {[%emt 0:00:17]} 57. Ng5 {[%emt 0:01:13]} Rh1+ {[%emt 0:07:57]} 58. Kg3 {[%emt 0:00:05]} Rxh4 {[%emt 0:00:05]} 59. Kxh4 {[%emt 0:00:03]} Ng2+ {[%emt 0:00:08]} 60. Kg3 {[%emt 0:00:08]} Ne3 {[%emt 0:00:03]} 61. Ne6 {[%emt 0:00:44]} Nxc4 {[%emt 0:00:29]} 62. Nxc7 {[%emt 0:00:08]} Nb2 {[%emt 0:00:10]} 63. Nb5 {[%emt 0:00:13]} Nxa4 {[%emt 0:00:06]} 64. Nxd6 {[%emt 0:00:04]} Nc3 {[%emt 0:00:07]} 65. Kf3 {[%emt 0:00:43]} Nxd5 {[%emt 0:00:12]} 66. Nc4 a4 {[%emt 0:00:02]} 67. Na3 {[%emt 0:00:45]} Kf6 {[%emt 0:00:38]} 68. Nb5 {[%emt 0:00:10]} Ke6 {[%emt 0:00:42]} 69. Nd4+ {[%emt 0:00:12]} Kd6 {[%emt 0:00:07]} 70. Nxf5+ {[%emt 0:00:07]} Kc5 {[%emt 0:00:04]} 71. Ke4 {[%emt 0:01:57]} Nb4 {[%emt 0:03:41]} 72. Nd4 {[%emt 0:01:13]} Kc4 {[%emt 0:00:28]} 73. f5 {[%emt 0:00:58]} a3 {[%emt 0:00:08]} 74. f6 {[%emt 0:01:15]} a2 {[%emt 0:00:09]} 75. f7 {[%emt 0:00:12]} a1=Q {[%emt 0:00:07]} 76. f8=Q {[%emt 0:00:06]} Qxd4+ {[%emt 0:00:14]} 77. Kf3 {[%emt 0:00:04]} Nd3 {[%emt 0:00:22]} 78. Qc8+ {[%emt 0:00:12]} Qc5 {[%emt 0:00:16]} 79. Qa6+ {[%emt 0:01:03]} b5 {[%emt 0:00:12]} 80. Qa2+ {[%emt 0:00:14]} Kd4 {[%emt 0:00:18]} 81. Qa1+ {[%emt 0:00:26]} Qc3 {[%emt 0:00:11]} 82. Qa7+ {[%emt 0:00:24]} Nc5+ {[%emt 0:07:45]} 83. Kg2 {[%emt 0:00:59]} Qd2+ {[%emt 0:00:00]} 84. Kh1 {[%emt 0:00:08]} Qe1+ {[%emt 0:00:00]} 85. Kh2 {[%emt 0:00:16]} b4 {[%emt 0:00:00]} 86. Qb6 {[%emt 0:01:00]} Qe5+ {[%emt 0:00:00]} 87. Kh1 {[%emt 0:00:06]} Qd5+ {[%emt 0:00:00]} 88. Kg1 {[%emt 0:00:19]} b3 {[%emt 0:00:00]} 89. Qb4+ {[%emt 0:00:56]} Qc4 {[%emt 0:00:00]} 90. Qd2+ {[%emt 0:00:05]} Nd3 {[%emt 0:00:00]} 91. Qh6 {[%emt 0:00:09]} Qc1+ 0-1

[Event "27th 4NCL Congress Open 2022"]
[Site "Harrogate"]
[Date "2022.01.22"]
[Round "3.12"]
[White "Stubbs, Oliver"]
[Black "Coates, Sam"]
[Result "1-0"]
[ECO "D02"]
[WhiteElo "1920"]
[BlackElo "1689"]
[Annotator "ChessBase"]
[PlyCount "79"]
[EventDate "2022.01.21"]
[EventType "swiss"]
[EventCountry "ENG"]
[SourceTitle "playchess.com"]
[Source "ChessBase"]
[SourceQuality "1"]
[TimeControl "5400+30"]

1. d4 {[%emt 0:01:53]} d5 {[%emt 0:00:08]} 2. Bf4 {[%emt 0:00:15]} c5 {[%emt 0:01:04]} 3. e3 {[%emt 0:00:13]} cxd4 {[%emt 0:00:42]} 4. exd4 {[%emt 0:00:05]} Nc6 {[%emt 0:01:06]} 5. c3 {[%emt 0:00:05]} Nf6 {[%emt 0:01:34]} 6. Nd2 {[%emt 0:02:36]} e6 {[%emt 0:03:00]} 7. Ngf3 {[%emt 0:02:47]} Bd6 {[%emt 0:01:01]} 8. Bg3 {[%emt 0:01:24]} O-O {[%emt 0:00:43]} 9. Bd3 {[%emt 0:01:04]} a5 {[%emt 0:12:15]} 10. Ne5 {[%emt 0:05:03]} Ne7 {[%emt 0:09:21]} 11. f4 {[%emt 0:06:31]} b6 {[%emt 0:10:49]} 12. Qe2 {[%emt 0:03:31]} Bb7 {[%emt 0:01:46]} 13. Bf2 {[%emt 0:11:10]} a4 {[%emt 0:10:58]} 14. a3 {[%emt 0:01:40]} Qc8 {[%emt 0:04:30]} 15. Qf3 {[%emt 0:08:52]} Ba6 {[%emt 0:01:50]} 16. Bc2 {[%emt 0:00:35]} Bb5 {[%emt 0:08:50]} 17. g4 {[%emt 0:04:29]} Ne8 {[%emt 0:03:27]} 18. Qh3 {[%emt 0:05:34]} f5 {[%emt 0:00:27]} 19. O-O-O {[%emt 0:07:35]} Nf6 {[%emt 0:06:04]} 20. gxf5 {[%emt 0:01:23]} Nxf5 {[%emt 0:01:41]} 21. Rhg1 {[%emt 0:01:14]} Ra7 {[%emt 0:01:36]} 22. Rg5 {[%emt 0:05:20]} Rc7 {[%emt 0:05:05]} 23. Rxf5 {[%emt 0:09:55]} exf5 {[%emt 0:03:14]} 24. Bxf5 {[%emt 0:00:46]} Qe8 {[%emt 0:03:31]} 25. Rg1 {[%emt 0:09:20]} Qh5 {[%emt 0:00:36]} 26. Be6+ {[%emt 0:00:40]} Kh8 {[%emt 0:00:39]} 27. Bh4 {[%emt 0:01:17]} Be8 {[%emt 0:02:53]} 28. Ndf3 {[%emt 0:02:33]} b5 {[%emt 0:01:56]} 29. Rg5 {[%emt 0:00:16]} Qh6 {[%emt 0:00:42]} 30. Kb1 {[%emt 0:00:50]} Ne4 {[%emt 0:01:50]} 31. Bf5 {[%emt 0:02:20]} Be7 {[%emt 0:01:59]} 32. Rg1 {[%emt 0:01:16]} Qxf4 {[%emt 0:00:33]} 33. Bxh7 {[%emt 0:01:26]} Nxc3+ {[%emt 0:00:36]} 34. Ka1 {[%emt 0:00:56]} Bh5 {[%emt 0:00:28]} 35. Bxe7 {[%emt 0:00:31]} Rxe7 {[%emt 0:00:30]} 36. Qxh5 {[%emt 0:00:46]} g5 {[%emt 0:00:33]} 37. Bc2+ {[%emt 0:00:50]} Kg8 {[%emt 0:00:27]} 38. Rxg5+ {[%emt 0:00:33]} Qxg5 {[%emt 0:00:32]} 39. Qxg5+ {[%emt 0:00:09]} Rg7 {[%emt 0:00:01]} 40. Qe3 {[%emt 0:00:52]} 1-0

[Event "27th 4NCL Congress Open 2022"]
[Site "Harrogate"]
[Date "2022.01.22"]
[Round "3.13"]
[White "Eagleton, Greg T"]
[Black "Gordon, Sean"]
[Result "1/2-1/2"]
[ECO "D95"]
[WhiteElo "2078"]
[BlackElo "2039"]
[Annotator "NA"]
[PlyCount "90"]
[EventDate "2022.01.21"]
[EventType "swiss"]
[EventCountry "ENG"]
[SourceTitle "playchess.com"]
[Source "ChessBase"]
[SourceQuality "1"]
[TimeControl "5400+30"]

1. d4 {[%emt 0:00:02]} Nf6 {[%emt 0:00:06]} 2. c4 {[%emt 0:00:07]} g6 {[%emt 0:00:07]} 3. Nc3 {[%emt 0:00:12]} d5 {[%emt 0:00:06]} 4. Nf3 {[%emt 0:00:31]} Bg7 {[%emt 0:00:09]} 5. e3 {[%emt 0:02:45]} O-O {[%emt 0:03:53]} 6. Qb3 {[%emt 0:01:21]} dxc4 {[%emt 0:06:53]} 7. Bxc4 {[%emt 0:01:13]} Nc6 {[%emt 0:02:15] 7...c5 is the fancy move.} 8. Qa3 {[%emt 0:06:13]} Qd6 {[%emt 0:08:37] [#]} (8... e5 $5) 9. Qxd6 $146 {[%emt 0:05:09]} ({Predecessor:} 9. b3 Nb4 10. Qb2 Bf5 11. O-O c5 12. Nb5 Qb6 13. Bd2 Ne4 14. a4 a6 15. Na3 cxd4 16. exd4 Nxd2 17. Qxd2 {0-1 (41) Pataridis,J (2125)-Pavlicek Czech Republic 1996}) 9... cxd6 {[%emt 0:00:12]} 10. O-O {[%emt 0:00:48]} a6 {[%emt 0:02:20]} 11. a4 {[%emt 0:05:12]} b6 {[%emt 0:04:03]} 12. Bd2 {[%emt 0:03:58]} Bb7 {[%emt 0:04:08]} 13. Rac1 {[%emt 0:08:53]} Rac8 {[%emt 0:03:59]} 14. Nd5 {[%emt 0:05:50]} Nxd5 {[%emt 0:04:03]} 15. Bxd5 {[%emt 0:00:07]} e6 {[%emt 0:03:41]} 16. Ba2 {[%emt 0:01:53]} d5 {[%emt 0:06:02]} 17. b4 {[%emt 0:03:15]} Nb8 {[%emt 0:10:06]} 18. Rfd1 {[%emt 0:15:43]} Nd7 {[%emt 0:03:15]} 19. b5 {[%emt 0:03:56]} a5 {[%emt 0:01:37]} 20. h4 {[%emt 0:07:03]} Bf6 {[%emt 0:03:45]} 21. g3 {[%emt 0:04:48]} h6 {[%emt 0:02:58]} 22. Kf1 {[%emt 0:02:00]} Be7 {[%emt 0:00:51]} 23. Rxc8 {[%emt 0:00:17]} Rxc8 {[%emt 0:00:10]} 24. Rc1 {[%emt 0:00:05]} Rxc1+ {[%emt 0:01:54]} 25. Bxc1 {[%emt 0:00:05]} Kg7 {[%emt 0:02:00]} 26. Ke2 {[%emt 0:02:01]} Bd6 {[%emt 0:03:14]} 27. Bb2 {[%emt 0:00:58]} f6 {[%emt 0:02:10]} 28. Nd2 {[%emt 0:01:32]} Kf7 {[%emt 0:03:50]} 29. Kd3 {[%emt 0:02:09]} f5 {[%emt 0:03:59]} 30. Ke2 {[%emt 0:05:38]} g5 {[%emt 0:03:10]} 31. hxg5 {[%emt 0:01:53]} hxg5 {[%emt 0:00:06]} 32. Nf3 {[%emt 0:00:43]} Kf6 {[%emt 0:00:52]} 33. Nd2 {[%emt 0:00:47]} g4 {[%emt 0:02:18]} 34. Nb1 {[%emt 0:01:16]} Kg5 {[%emt 0:02:53]} 35. Ba3 {[%emt 0:00:34]} Bxa3 {[%emt 0:00:27]} 36. Nxa3 {[%emt 0:00:05]} Nf6 {[%emt 0:00:51]} 37. Bb1 {[%emt 0:00:48]} Bc8 {[%emt 0:00:58]} 38. Bd3 {[%emt 0:00:53]} Bd7 {[%emt 0:00:43]} 39. Nc2 {[%emt 0:00:45]} Be8 {[%emt 0:01:07]} 40. Ne1 {[%emt 0:00:08]} Ne4 {[%emt 0:01:29]} 41. Bc2 {[%emt 0:03:31]} Nd6 {[%emt 0:01:17]} 42. Nd3 {[%emt 0:00:29]} Kf6 {[%emt 0:01:06]} 43. Ne5 {[%emt 0:00:37]} Nf7 {[%emt 0:01:06]} 44. Nd3 $11 {[%emt 0:01:03]} Nd6 {[%emt 0:00:24]} 45. Nf4 {[%emt 0:00:54]} Ne4 {[%emt 0:00:42]} 1/2-1/2